Cogmind - Beta 13 *** ADVENTURER MODE // 2024.04.02 @ 19:52:02 Player: furiousskeleton Result: Self-destructed Performance ------------- Evolutions (2) 1000 Regions Visited (3) 600 Robots Destroyed (10) 50 Value Destroyed (204) 204 Prototype IDs (4) 80 Alien Tech Used (0) 0 Bonus (0) 0 TOTAL SCORE: 1934 Bonus ------- None Cogmind --------- Core Integrity 537/550 Matter 178/300 Energy 24/140 System Corruption 0% Temperature Cool (90) Movement Walking (122) Location -8/Materials Parts ------- > --- POWER (1) -------- Light Deuterium Engine > --- PROPULSION (4) --- Aluminum Leg Aluminum Leg Aluminum Leg Titanium Leg > --- UTILITY (4) ------ Improved Sensor Array Signal Interpreter Improved Terrain Scanner Shield Generator > --- WEAPON (2) ------- Ion Cannon Ion Cannon > --- INVENTORY (5) ---- Improved Ion Engine Compact Wheel Seismic Detector Improved Datajack Mining Laser Peak State ------------ > --- POWER ------------ Light Deuterium Engine > --- PROPULSION ------- Aluminum Leg Aluminum Leg Aluminum Leg Titanium Leg > --- UTILITY ---------- Improved Sensor Array Signal Interpreter Improved Terrain Scanner Shield Generator > --- WEAPON ----------- Ion Cannon Ion Cannon > --- INVENTORY -------- Improved Ion Engine Aluminum Leg Compact Wheel Seismic Detector Mining Laser [Rating: 24] Favorites ----------- Power Ion Engine Engine Ion Engine Propulsion Aluminum Leg Leg Aluminum Leg Utility Small Storage Unit Device Shield Generator Storage Small Storage Unit Processor Signal Interpreter Weapon EM Pulse Gun Energy Gun EM Pulse Gun Energy Cannon Ion Cannon Slashing Weapon Mining Claw Build | -11 -10 -9 -8 ------- Run | Yrd Mat Mat Mat Slots Evolved 4 | . . 2 2 Power . | . . . . Propulsion 2 | . . 2 . Utility 2 | . . . 2 Weapon . | . . . . Parts Attached 26 | 7 4 5 10 Power 3 | 1 . 1 1 Engine 3 | 1 . 1 1 Core . | . . . . Reactor . | . . . . Propulsion 5 | 2 . 2 1 Treads . | . . . . Leg 5 | 2 . 2 1 Wheel . | . . . . Hover . | . . . . Flight . | . . . . Utility 10 | 1 1 2 6 Device 7 | . 1 1 5 Storage 2 | 1 . . 1 Processor 1 | . . 1 . Hackware . | . . . . Protection . | . . . . Artifact . | . . . . Weapon 8 | 3 3 . 2 Energy Gun 5 | 3 2 . . Energy Cannon 2 | . . . 2 Ballistic Gun . | . . . . Ballistic Cannon . | . . . . Launcher . | . . . . Special Weapon . | . . . . Impact Weapon . | . . . . Slashing Weapon 1 | . 1 . . Piercing Weapon . | . . . . Special Melee Weapon . | . . . . Unidentified Prototypes . | . . . . Parts Lost 1 | . 1 . . Power . | . . . . Propulsion . | . . . . Utility 1 | . 1 . . Weapon . | . . . . Highest Loss Streak 1 | . 1 . . To Critical Strikes . | . . . . Average Slot Usage (%) 93 | . 91 85 99 Engine 11 | . 14 11 9 Leg 32 | . 28 34 36 Device 14 | . 6 6 26 Storage 6 | . 14 5 . Processor 4 | . . 5 9 Energy Gun 14 | . 27 22 . Energy Cannon 7 | . . . 17 Naked Turns . | . . . . Heaviest Build 27 | 13 15 17 27 Greatest Support 47 | 20 20 40 47 Greatest Overweight (x) . | . . . . Average Overweight (x) . | . . . . Largest Inventory Capacity 8 | 8 8 8 8 Average Capacity 6 | 6 8 6 5 Most Carried 6 | 3 5 5 6 Average Carried 4 | 1 4 4 4 Final Capacity 8 | 8 8 5 5 Final Carried 5 | 3 5 5 5 Class Distribution -------------------- 60% | Mutant 39% | Skirmisher Dominant Class ---------------- Mutant | -10/Materials Mutant | -9/Materials Skirmisher | -8/Materials Resources | -11 -10 -9 -8 ----------- Run | Yrd Mat Mat Mat Matter Collected 330 | 173 95 30 32 Remotely . | . . . . Salvage Created 259 | . 118 47 94 Parts 19 | . 8 4 7 Haulers Intercepted . | . . . . Recyclers Shooed . | . . . . Parts Field Recycled . | . . . . Retrieved Matter . | . . . . Parts Self-Destructed . | . . . . Prevented . | . . . . Kills | -11 -10 -9 -8 ------- Run | Yrd Mat Mat Mat Combat Hostiles Destroyed 6 | . 2 . 4 Melee 1 | . 1 . . Guns 1 | . 1 . . Cannons 4 | . . . 4 Classes Destroyed 3 | . 2 . 1 Watcher 4 | . 1 2 1 Swarmer 4 | . . . 4 Grunt 2 | . 2 . . Best Kill Streak 3 | . 1 1 3 Combat Bots Only 3 | . 1 . 3 Max Kills in Single Turn 1 | . 1 1 1 Gunslinging . | . . . . Exploded . | . . . . Melee 1 | . 1 . . Uniques/NPCs Destroyed . | . . . . Combat | -11 -10 -9 -8 -------- Run | Yrd Mat Mat Mat Hostile Shots Fired 77 | . 21 20 36 Missed 25 | . 2 9 14 Damage Taken 423 | . 192 118 113 Core 79 | . 45 21 13 Absorbed by Shields 46 | . . . 46 Ignored by Resistances 148 | . 60 35 53 Core Remaining (%) 92 | 100 82 94 . Volleys Fired 21 | . 7 5 9 Largest 2 | . 2 2 2 Hottest 120 | . 80 80 120 Shots Fired 42 | . 14 10 18 Gun 24 | . 14 10 . Cannon 18 | . . . 18 Launcher . | . . . . Special . | . . . . Kinetic . | . . . . Thermal 18 | . . . 18 Explosive . | . . . . Electromagnetic 24 | . 14 10 . Robot Hit Streak 5 | . 5 3 5 Robot Miss Streak 3 | . 2 3 1 Penetration Max . | . . . . Secondary Targets . | . . . . Shots Hit Robots 29 | . 13 6 10 Core Hits 15 | . 6 3 6 Critical Kills . | . . . . Critical Parts Destroyed . | . . . . Critical Strikes . | . . . . Melee Attacks 6 | . 6 . . Impact . | . . . . Slashing 6 | . 6 . . Piercing . | . . . . Sneak Attacks . | . . . . Combat Hostiles . | . . . . Follow-up Attacks . | . . . . Damage Inflicted 598 | . 243 102 253 Guns 247 | . 145 102 . Cannons 253 | . . . 253 Explosions . | . . . . Melee 94 | . 94 . . Ramming 4 | . 4 . . Kinetic . | . . . . Thermal 253 | . . . 253 Explosive . | . . . . Electromagnetic 247 | . 145 102 . Impact . | . . . . Slashing 94 | . 94 . . Piercing . | . . . . Highest Corruption . | . . . . Average Corruption . | . . . . Corruption Purged . | . . . . Corruption Blocked . | . . . . Overload Shots . | . . . . Overflow Damage 4 | . . . 4 Projectiles 4 | . . . 4 Explosions . | . . . . Melee . | . . . . Knockbacks . | . . . . Impact . | . . . . Kinetic . | . . . . Secondary . | . . . . Self-Inflicted Damage . | . . . . Shots . | . . . . Rammed . | . . . . Targets Rammed 1 | . 1 . . Kicked 1 | . 1 . . Crushed . | . . . . Highest Temperature 180 | . 102 60 180 Average Temperature 52 | . 31 19 78 Received Heat Transfer 255 | . 132 105 18 Siege Activations . | . . . . Robots Corrupted . | . . . . Combat Hostiles . | . . . . Parts Fried . | . . . . Impact Corruptions . | . . . . Robots Melted . | . . . . Combat Hostiles . | . . . . Parts Melted . | . . . . Heat Transferred 407 | . . . 407 Parts Sabotaged . | . . . . Parts Stolen . | . . . . Parts Stripped . | . . . . Power Chain Reactions . | . . . . Alert | -11 -10 -9 -8 ------- Run | Yrd Mat Mat Mat Peak Influence 130 | . 74 130 106 Initial 46 | . . 10 46 Average 38 | . 16 51 54 Maximum Alert Level . | . . . . Low Security (%) 100 | 100 100 100 100 Level 1 . | . . . . Level 2 . | . . . . Level 3 . | . . . . Level 4 . | . . . . Level 5 . | . . . . High Security . | . . . . Max Security . | . . . . Squads Dispatched 3 | . 1 . 2 Investigation 1 | . 1 . . Extermination . | . . . . Reinforcement 1 | . . . 1 Assault . | . . . . Garrison 1 | . . . 1 Intercept . | . . . . Searches Triggered . | . . . . Construction Impeded . | . . . . Haulers Reinforced . | . . . . Active Scanning Responses . | . . . . Cargo Convoy Interrupts . | . . . . Stealth | -11 -10 -9 -8 --------- Run | Yrd Mat Mat Mat Distress Signals 3 | . 2 1 . Communications Jammed . | . . . . Distress Signals . | . . . . Times Spotted 33 | . 8 12 13 Peak Tracking Total 6 | . 3 6 4 Tactical Retreats 4 | . 1 2 1 Traps | -11 -10 -9 -8 ------- Run | Yrd Mat Mat Mat Traps Triggered 2 | . 2 . . Indirectly . | . . . . Trap Hack Attempts . | . . . . Triggered . | . . . . Disarmed . | . . . . Reprogrammed . | . . . . Reused . | . . . . Traps Extracted . | . . . . Installed . | . . . . Triggered . | . . . . Machines | -11 -10 -9 -8 ---------- Run | Yrd Mat Mat Mat Machines Disabled 1 | . . 1 . Max in Single Turn 1 | . . 1 . Machines Repaired . | . . . . Machines Dismantled . | . . . . Machines Sabotaged . | . . . . Overloaded Fab Kills . | . . . . Hacking | -11 -10 -9 -8 --------- Run | Yrd Mat Mat Mat Machines Accessed 5 | . 1 3 1 Terminals 5 | . 1 3 1 Fabricators . | . . . . Repair Stations . | . . . . Recycling Units . | . . . . Scanalyzers . | . . . . Garrison Access . | . . . . Total Hacks 17 | . 3 10 4 Successful 14 | . 2 9 3 Failed 3 | . 1 1 1 Catastrophic . | . . . . Database Lockouts . | . . . . Manual . | . . . . Terminals 17 | . 3 10 4 Fabricators . | . . . . Repair Stations . | . . . . Recycling Units . | . . . . Scanalyzers . | . . . . Garrison Access . | . . . . Terminal Hacks 14 | . 2 9 3 Prototype ID Bank 2 | . . 2 . Emergency Access Points 1 | . . . 1 Alert Level 3 | . . 2 1 Unreport Threat 1 | . . . 1 Dispatch Records 2 | . 1 1 . Surveillance Status 1 | . 1 . . Patrol Status 1 | . . 1 . Recall Assault 1 | . . 1 . Zone Layout 2 | . . 2 . Fabricator Hacks . | . . . . Repair Station Hacks . | . . . . Recycling Unit Hacks . | . . . . Scanalyzer . | . . . . Garrison Access Hacks . | . . . . Unauthorized Hacks . | . . . . Terminals . | . . . . Fabricators . | . . . . Repair Stations . | . . . . Recycling Units . | . . . . Scanalyzers . | . . . . Garrison Access . | . . . . Data Cores Recovered . | . . . . Used . | . . . . Hacking Detections 3 | . 1 1 1 Full Trace Events 1 | . . . 1 Feedback Events . | . . . . Feedback Blocked . | . . . . Robot Schematics Acquired . | . . . . Robots Built . | . . . . Authchips . | . . . . Time . | . . . . Total Robot Build Rating . | . . . . Part Schematics Acquired . | . . . . Parts Built . | . . . . Authchips . | . . . . Time . | . . . . Total Part Build Rating . | . . . . Parts Repaired . | . . . . Time . | . . . . Parts Recycled . | . . . . Recycled Matter . | . . . . Retrieved Matter . | . . . . Retrieved Components . | . . . . Parts Scanalyzed . | . . . . Part Schematics Acquired . | . . . . Parts Damaged . | . . . . Bothacking | -11 -10 -9 -8 ------------ Run | Yrd Mat Mat Mat Used RIF Installer . | . . . . Robots Hacked . | . . . . Non-combat . | . . . . Combat . | . . . . Robot Hacks Applied . | . . . . Relay Couplers Released . | . . . . Fabnet Peak Effective % . | . . . . Robots Rewired . | . . . . Allies Hacked . | . . . . Hacks Repelled . | . . . . Allies | -11 -10 -9 -8 -------- Run | Yrd Mat Mat Mat Total Allies . | . . . . Largest Group . | . . . . Highest-Rated Group . | . . . . Highest-Rated Ally . | . . . . Total Orders . | . . . . Ally Attacks . | . . . . Total Damage . | . . . . Kills . | . . . . Allies Corrupted . | . . . . Allies Melted . | . . . . Intel | -11 -10 -9 -8 ------- Run | Yrd Mat Mat Mat Robot Analysis Total . | . . . . Derelict Logs Recovered . | . . . . Drone Launches . | . . . . Drone Recoveries . | . . . . Exploration | -11 -10 -9 -8 ------------- Run | Yrd Mat Mat Mat Turns Passed 1520 | 69 524 323 604 Spaces Moved 1025 | 51 373 243 358 Core 11 | 11 . . . Treads . | . . . . Legs 1014 | 40 373 243 358 Wheels . | . . . . Hover . | . . . . Flight . | . . . . Fastest Speed 50 | 50 120 120 120 Average Speed 119 | 104 120 120 121 Slowest Speed 122 | 120 120 120 122 Overloaded Moves . | . . . . Propulsion Burnouts . | . . . . Robots Hopped . | . . . . Cave-ins Triggered . | . . . . Exploration Rate (%) 32 | 3 68 31 28 Regions Visited 3 Branch Regions . Pre-discovered Areas . | . . . . Known Exits Taken 1 | . . 1 . Unknown Exits Taken 2 | 1 1 . . Scrap Searched . | . . . . Spaces Dug 1 | . 1 . . Terrain Destroyed 2 | . 1 . 1 Melee 1 | . 1 . . Projectile 1 | . . . 1 AOE . | . . . . Terrain Rammed . | . . . . Walls Destroyed . | . . . . Machines Disabled . | . . . . Actions | -11 -10 -9 -8 --------- Run | Yrd Mat Mat Mat Total 1266 | 66 423 265 512 Wait 150 | . 27 5 118 Move 1022 | 50 372 242 358 Hop . | . . . . Pick Up 27 | 9 4 5 9 Fast Attach 1 | . . 1 . Attach 19 | 6 2 3 8 Detach 1 | . . . 1 Swap 6 | 1 2 1 2 Drop 12 | . 2 3 7 Fire 21 | . 7 5 9 Melee 6 | . 6 . . Ram . | . . . . Kick 1 | . 1 . . Crush . | . . . . Escape Stasis . | . . . . Rewire . | . . . . Trap . | . . . . Miscellaneous . | . . . . Route ------- -11/Scrapyard -10/Materials (discovered 3 exits: *Mat / [*Min x2]) -9/Materials -8/Materials History --------- Turn | Location | Event 7 | -11/Scrapyard | Discovered new exit (range 16) 70 | -11/Scrapyard | Entered Materials 161 | -10/Materials | Discovered new exit (range 15) 189 | -10/Materials | Met 8R-AWN 316 | -10/Materials | Build established: Mutant 502 | -10/Materials | Discovered new exit (range 16) 571 | -10/Materials | Discovered new exit (range 13) 594 | -10/Materials | Entered another Materials area 594 | -9/Materials | Evolved 2 slots: Propulsion x2 914 | -9/Materials | Discovered new exit (range 4) 916 | -9/Materials | Identified exit to Materials 917 | -9/Materials | Entered another Materials area 917 | -8/Materials | Evolved 2 slots: Utility x2 1219 | -8/Materials | Build established: Skirmisher 1518 | -8/Materials | Garrison activated, responded to threat 1521 | -8/Materials | Self-destructed Last Messages --------------- >>Alert(Purge) Purged threat record, alert level lowered. O-24 Administrator: "IFF HANDSHAKE FAILED. SECURING TERMINAL." S-10 Pest destroyed. ALERT: Hostiles spotted, dispatching reinforcements to Terminal M006. S-10 Pest destroyed. Destroyed Flight Unit. S-10 Pest destroyed. K-01 Serf cleans the Electrolysis Chamber. K-01 Serf cleans the Scanalyzer. K-01 Serf cleans the Electrolysis Chamber. K-01 Serf cleans the Scanalyzer. Connecting with Scanalyzer... K-01 Serf cleans the Electrolysis Chamber. S-10 Pest destroyed. S-10 Pest calls for garrison reinforcements. ALERT: Activating Garrison Access M001. K-01 Serf collects debris. Map ----- +----------------------------------------------------+ | ???## #????????????????????????????????????????? | | ????# #????????????????????????????????????????? | | ????# #????????????????????????????????????????? | | ????# #?? ????????????????????????????????????? | | ?#??# #? ?????????????????????????????????????? | | #???# #????????????????????????????????????????? | | ##### + ?? ? ??????#???????????????????????????? | | #??????? ????????????????????????????????? | | #????????????????????????????????????????? | | #???? ? ????????????????????????????????? | | ##### ########?#???????????????????????????????? | | ##### # ###???"???????????????????????????? | | # # """ !#?##??"???????????????????????????? | | " # + """ #????????"????x???? ??????????????? | | ! T # *#[""" #??#?????????????? ??????????????? | | " + =%+%""" #??#????? ???? ?? ""?????????????? | | # =%* !##?#?????? ???? """????????????? | | ## ######+##??????????????? """ ???????????? | | !* ## #????# #???#??#???????? ??????????? | | !* ## #?#??# ##????????????? ??????????? | | ###### #??###+############### ??????????? | | ###### ##### # #?????????? | | / """ # ????????????? | | ######## x """ # k u #???????????????? | | #??????# """ # s #???????????????? | | ##+##????#?# x # ks@ #???????????????? | | ?????????#?#"S """x# ##########???????????????? | | ?? ????????#""" """x# # """ ????????????????? | | ????"? ?##?# "" """ x + "T" ! ?#??????????????? | | ?? ???????## # # X#??????????????? | | ????"? ???########### #??!=! ##??????????????? | | ? ? ??#????????#??# #???? #???????????????? | | ?????????????????#??# #??????= #???????????????? | | ?????????????#??????# #????????#???????????????? | | ????????????????????# #????????????????????????? | | ?????????????? ?? ??+ X #????????????????????????? | | ????????????????????# ##???????????????????????? | | ????????????????????# #????????????????????????? | | ????????????????????# #????????????????????????? | | ???????????????????? ????????????????????????? | | ???????????????????? ????????????????????????? | | ???????????????????? ????????????????????????? | | ???????????????????? ????????????????????????? | | ???????????????????? #???????????????????????? | | ????????????????????# #????????????????????????? | | ?????????????????????????????????????????????????? | | ?????????????????????????????????????????????????? | | ?????????????????????????????????????????????????? | | ?????????????????????????????????????????????????? | | ?????????????????????????????????????????????????? | +----------------------------------------------------+ Best States ------------- Heat Dissipation 31 Energy Generation 14 Energy Capacity 265 Matter Stores 266 Matter Capacity 300 Sight Range 16 Robot Scan Range 15 Terrain Scan Range 16 Terrain Scan Density 10 Resistance: KI 20 Resistance: TH 20 Resistance: EX 20 Resistance: EM 20 Resistance: I 20 Resistance: S 20 Resistance: P 20 Evasion (%) 55 Offensive Hacking 10 Item Schematics ----------------- None Robot Schematics ------------------ None Fabricated ------------ Nothing Alien Tech Used ----------------- None Achievements -------------- None Challenges ------------ None Game ------ Seed RecyclingLightMultitool Manual? 0 Play Time 00:16:01 Cumulative 6.3 hours Start 2024.04.02 @ 19:35:45 End 2024.04.02 @ 19:52:02 Sessions 1 Manual Loads 0 Difficulty Adventurer Special Mode None Game No. 8 Rogue 0 Adventurer 8 Explorer 0 Win Type - Total 0 Types 0/0/0/0/0/0/0/0/0 Lore% 6 Gallery% 11 Achievement% 11 Wizard Run 0 Options --------- Layout 1 ASCII 0 Keyboard 0 Movement Mouse Keybinds 0 Fullscreen 2 Font 32/SmallcapsGlow Map View 50x35 Zoom Use 0% Tactical HUD 0 Map Filters NONE Filters NONE Steam 1 RUN: 03a9b18a-6ff9-4917-b86d-0a0f54d59df8